[Event "7th Ali Ipek Memorial 2019"]
[Site "Ankara"]
[Date "2019.03.08"]
[Round "3.2"]
[White "Arkac, Alp"]
[Black "Buker, Muhittin"]
[Result "0-1"]
[ECO "B08"]
[WhiteElo "1335"]
[BlackElo "2009"]
[Annotator "NA RC"]
[PlyCount "86"]
[EventDate "2019.03.06"]
[EventType "swiss"]
[EventCountry "TUR"]
[SourceTitle "playchess.com"]
[Source "ChessBase"]
[SourceQuality "1"]
[TimeControl "5400+30"]

1. e4 {[%emt 0:00:30]} d6 {[%emt 0:00:30]} 2. d4 {[%emt 0:00:30]} Nf6 {[%emt 0:00:30]} 3. Nc3 {[%emt 0:00:30]} g6 {[%emt 0:00:00]} 4. Nf3 {[%emt 0:00:30]} Bg7 {[%emt 0:00:00]} 5. Be2 {[%emt 0:00:30]} O-O {[%emt 0:00:30]} 6. O-O {[%emt 0:00:30]} Bg4 {[%emt 0:00:30]} 7. h3 {[%emt 0:00:30]} Bxf3 {[%emt 0:00:00]} 8. Bxf3 {[%emt 0:00:30]} Nc6 {[%emt 0:01:00]} 9. Bf4 {[%emt 0:08:30] B08: Pirc Defence: Classical System} (9. Be3 Re8 10. Re1 e5 11. d5 Nd4 12. Bxd4 exd4 13. Nb5 Nd7 14. Nxd4 h5 15. c3 a6 16. Qc2 Qg5 17. Be2 {1-0 (55) Timofeev,A (2601)-Bryzgalin,K (2424) Sochi 2016}) 9... Nd7 {[%emt 0:04:30]} 10. Be3 {[%emt 0:05:30]} e5 {[%emt 0:00:30]} 11. dxe5 {[%emt 0:01:30]} dxe5 {[%emt 0:01:30]} 12. Qd5 $146 {[%emt 0:04:30]} ({Predecessor:} 12. Nd5 Nd4 13. c3 Ne6 14. Qb3 c6 {1-0 (33) Schmeing,W-Stoeber,M (2235) Germany 1994}) 12... Nb6 {[%emt 0:00:30]} 13. Qxd8 {[%emt 0:03:30]} Rfxd8 {[%emt 0:00:30]} 14. Nb5 {[%emt 0:03:30]} Nd4 $1 {[%emt 0:02:30]} 15. Nxd4 {[%emt 0:02:30]} exd4 {[%emt 0:00:30]} 16. Bf4 {[%emt 0:01:30]} c6 {[%emt 0:03:30]} 17. Be2 {[%emt 0:08:30]} Na4 {[%emt 0:04:30]} 18. Rab1 {[%emt 0:03:30]} b5 {[%emt 0:05:30]} 19. e5 {[%emt 0:03:30]} Re8 {[%emt 0:05:30]} 20. Bf3 {[%emt 0:00:30]} Bxe5 {[%emt 0:00:30]} 21. Bxc6 {[%emt 0:00:30]} Bxf4 {[%emt 0:00:30]} 22. Bxa8 {[%emt 0:00:30]} Rxa8 {[%emt 0:00:30]} 23. Rfe1 {[%emt 0:00:30]} Rd8 {[%emt 0:00:30]} 24. Re7 {[%emt 0:01:30]} a6 {[%emt 0:00:30]} 25. Ra7 {[%emt 0:01:30]} Rd6 {[%emt 0:01:30]} 26. g3 {[%emt 0:01:30]} Bg5 {[%emt 0:01:30]} 27. b3 {[%emt 0:02:30]} Nc3 {[%emt 0:00:30]} 28. Re1 {[%emt 0:00:30]} Nxa2 {[%emt 0:00:30]} 29. Re8+ {[%emt 0:00:30]} Kg7 {[%emt 0:00:30]} 30. h4 {[%emt 0:02:30]} Bc1 {[%emt 0:03:30]} 31. Ree7 {[%emt 0:00:30]} Rf6 {[%emt 0:00:30]} 32. Kg2 {[%emt 0:02:30]} Nb4 {[%emt 0:00:30]} 33. Rec7 {[%emt 0:01:30]} h5 {[%emt 0:02:30]} 34. f4 {[%emt 0:03:30]} Bb2 {[%emt 0:05:30]} 35. Kf3 {[%emt 0:03:30]} Bc3 {[%emt 0:00:30]} 36. Ke4 {[%emt 0:02:30]} Nxc2 {[%emt 0:01:30]} 37. Rd7 {[%emt 0:03:30]} Nb4 {[%emt 0:01:30]} 38. Rac7 {[%emt 0:01:30]} a5 {[%emt 0:04:30]} 39. Ra7 {[%emt 0:02:30]} Na6 {[%emt 0:06:30]} 40. Rd5 {[%emt 0:06:16]} a4 {[%emt 0:03:30]} 41. bxa4 {[%emt 0:05:47]} bxa4 {[%emt 0:00:00]} 42. Rd8 {[%emt 0:00:18]} Re6+ {[%emt 0:03:00]} 43. Kd3 {[%emt 0:01:37]} Nb4+ $19 {[%emt 0:00:30]} (43... a3 44. Rda8 a2 45. Rxa6 Rxa6 46. Rxa6 a1=Q 47. Rxa1 Bxa1) 0-1

[Event "7th Ali Ipek Memorial 2019"]
[Site "Ankara"]
[Date "2019.03.08"]
[Round "3.4"]
[White "Severcan, Sedat Sabri"]
[Black "Bingologlu, Furkan"]
[Result "0-1"]
[ECO "A09"]
[WhiteElo "1927"]
[BlackElo "1578"]
[Annotator "NA RC"]
[PlyCount "164"]
[EventDate "2019.03.06"]
[EventType "swiss"]
[EventCountry "TUR"]
[SourceTitle "playchess.com"]
[Source "ChessBase"]
[SourceQuality "1"]
[TimeControl "5400+30"]

1. Nf3 {[%emt 0:00:30]} Nf6 {[%emt 0:00:30]} 2. g3 {[%emt 0:00:00]} d5 {[%emt 0:01:30]} 3. Bg2 {[%emt 0:01:00]} c5 {[%emt 0:03:30]} 4. O-O {[%emt 0:00:30]} Nc6 {[%emt 0:04:30]} 5. c4 {[%emt 0:01:30]} d4 {[%emt 0:00:30]} 6. d3 {[%emt 0:00:30]} e5 {[%emt 0:03:30]} 7. Ng5 {[%emt 0:02:30] A09: Réti Opening: 1 Nf3 d5 2 c4} (7. e3 Be7 8. exd4 cxd4 9. Re1 Nd7 10. Na3 O-O 11. Nc2 a5 12. b3 f6 13. Nd2 Nc5 14. Ne4 Bf5 15. Nxc5 Bxc5 {½-½ (31) Radjabov,T (2741)-Harikrishna,P (2738) Palma de Mallorca 2017}) 7... Bd6 {[%emt 0:07:30]} ({Black should play} 7... h6 $17 8. Ne4 Nxe4 9. Bxe4 Bh3) 8. Nd2 {[%emt 0:02:30]} O-O {[%emt 0:04:30]} 9. Nge4 {[%emt 0:01:30]} Nxe4 {[%emt 0:06:30]} 10. Nxe4 {[%emt 0:00:00]} Be7 {[%emt 0:00:30]} 11. f4 {[%emt 0:03:00]} f5 {[%emt 0:03:30]} 12. Ng5 {[%emt 0:05:30]} Bxg5 $146 {[%emt 0:06:30]} ({Predecessor:} 12... exf4) 13. fxg5 {[%emt 0:00:30]} Be6 {[%emt 0:02:30]} 14. a3 {[%emt 0:00:30]} e4 {[%emt 0:05:30]} 15. Bf4 {[%emt 0:00:30]} Qd7 {[%emt 0:05:30]} 16. Qc2 {[%emt 0:02:30]} e3 {[%emt 0:01:30]} 17. Rab1 {[%emt 0:04:30]} a5 {[%emt 0:01:30]} 18. Qb3 {[%emt 0:00:30]} Rfc8 {[%emt 0:06:30]} 19. Qa4 {[%emt 0:09:30]} Qe7 {[%emt 0:02:30]} 20. h4 {[%emt 0:01:30]} Bd7 {[%emt 0:01:30]} 21. Bd5+ {[%emt 0:01:30]} Be6 {[%emt 0:01:30]} 22. Bg2 {[%emt 0:03:30]} Bd7 {[%emt 0:01:30]} 23. Qc2 {[%emt 0:00:30]} (23. Qd1 $14) 23... Ra7 {[%emt 0:02:30]} 24. b3 {[%emt 0:04:30]} Be8 {[%emt 0:05:30]} 25. Rb2 {[%emt 0:06:30]} Rca8 {[%emt 0:04:10]} 26. Bd5+ {[%emt 0:05:30]} Bf7 {[%emt 0:00:30]} 27. Bxf7+ {[%emt 0:00:30]} Kxf7 {[%emt 0:00:30]} 28. g4 {[%emt 0:01:30]} Kg8 {[%emt 0:02:25]} 29. gxf5 {[%emt 0:00:30]} Rf8 {[%emt 0:01:30]} 30. Bg3 {[%emt 0:00:30]} (30. Qc1 $11) 30... Qd7 {[%emt 0:02:24]} 31. Rbb1 {[%emt 0:01:30]} (31. Qc1 $15) 31... Rxf5 {[%emt 0:03:30]} 32. Rxf5 {[%emt 0:00:30]} Qxf5 {[%emt 0:00:02]} 33. Rf1 {[%emt 0:00:30]} Qg4 {[%emt 0:00:41]} (33... Qh3 $15 34. Rf3 Ne7) 34. Kg2 {[%emt 0:03:30]} b6 {[%emt 0:03:07]} 35. Rf4 {[%emt 0:00:30]} Qh5 {[%emt 0:00:48]} 36. Qd1 {[%emt 0:00:30]} Rf7 {[%emt 0:00:56]} 37. Rxf7 {[%emt 0:00:30]} Kxf7 {[%emt 0:01:45]} 38. Qf1+ {[%emt 0:01:30]} Ke6 {[%emt 0:02:00]} 39. Kh3 {[%emt 0:03:30]} Ne5 {[%emt 0:00:36]} 40. Qf4 {[%emt 0:02:30]} Nf7 {[%emt 0:01:10]} 41. Qe4+ {[%emt 0:00:30]} Kd7 {[%emt 0:00:16]} 42. Qb7+ {[%emt 0:00:30]} Ke8 {[%emt 0:00:58]} 43. Qc8+ {[%emt 0:01:30]} Ke7 {[%emt 0:00:18]} 44. Qc7+ {[%emt 0:00:30]} Ke8 {[%emt 0:01:02]} 45. Qc8+ {[%emt 0:02:30]} Ke7 {[%emt 0:00:15]} 46. Qg4 {[%emt 0:01:30]} Qxg4+ {[%emt 0:01:27]} 47. Kxg4 {[%emt 0:00:30]} Nd6 {[%emt 0:00:30]} 48. h5 {[%emt 0:00:30]} g6 {[%emt 0:00:49]} 49. h6 {[%emt 0:01:30]} Ke6 {[%emt 0:00:46]} 50. Be1 {[%emt 0:01:30]} Nb7 {[%emt 0:00:54]} 51. Kf4 {[%emt 0:00:30]} Nd6 {[%emt 0:00:34]} 52. Bg3 {[%emt 0:01:30]} Nf5 {[%emt 0:00:30]} 53. Bh2 {[%emt 0:00:00]} Nd6 {[%emt 0:00:14]} 54. Bg1 {[%emt 0:01:00]} Nf5 {[%emt 0:00:31]} 55. Bh2 {[%emt 0:00:30]} Nd6 {[%emt 0:00:01]} 56. Kg4 {[%emt 0:00:30]} Kd7 {[%emt 0:01:08]} 57. Be5 {[%emt 0:00:30]} Ke6 {[%emt 0:00:30]} 58. Bf6 {[%emt 0:00:30]} Nf7 {[%emt 0:00:28]} 59. Bg7 {[%emt 0:00:30]} Kd6 {[%emt 0:00:38]} 60. Kf4 {[%emt 0:00:30]} Ke6 {[%emt 0:00:00]} 61. Kg4 {[%emt 0:00:30]} Kd6 {[%emt 0:00:19]} 62. Bf8+ {[%emt 0:01:30]} Ke6 {[%emt 0:00:03]} 63. Kf4 {[%emt 0:01:30]} Nd6 {[%emt 0:00:06]} 64. Bg7 {[%emt 0:00:30]} Nf7 {[%emt 0:00:21]} 65. b4 {[%emt 0:01:30]} axb4 {[%emt 0:01:26]} 66. axb4 {[%emt 0:00:00]} Nd6 {[%emt 0:01:02]} 67. b5 {[%emt 0:02:00]} Nf7 {[%emt 0:00:30]} 68. Bf6 {[%emt 0:01:15]} Kd6 {[%emt 0:00:06]} 69. Bg7 {[%emt 0:00:44]} Ke6 {[%emt 0:00:09]} 70. Bf6 {[%emt 0:02:22]} Kd6 {[%emt 0:00:08]} 71. Bg7 {[%emt 0:01:47]} Ke6 {[%emt 0:00:35]} 72. Bf8 $11 {[%emt 0:00:30]} Nd6 {[%emt 0:00:07]} 73. Kg4 {[%emt 0:00:35]} Nxc4 {[%emt 0:00:47]} 74. Bg7 {[%emt 0:06:41]} Nd6 {[%emt 0:00:30]} 75. Bf6 {[%emt 0:00:14]} Nxb5 {[%emt 0:00:55]} 76. Bd8 {[%emt 0:01:58]} c4 {[%emt 0:00:16]} 77. dxc4 {[%emt 0:01:30]} d3 {[%emt 0:00:26]} 78. exd3 {[%emt 0:02:40]} e2 {[%emt 0:00:20]} 79. Bxb6 {[%emt 0:00:22]} e1=Q {[%emt 0:00:38]} 80. cxb5 {[%emt 0:00:12]} Qe2+ {[%emt 0:00:27]} 81. Kf4 {[%emt 0:01:01]} Qxd3 {[%emt 0:00:02]} 82. Be3 {[%emt 0:00:47]} Qxb5 {[%emt 0:00:14]} 0-1

[Event "7th Ali Ipek Memorial 2019"]
[Site "Ankara"]
[Date "2019.03.08"]
[Round "3.5"]
[White "Taspinar, Yanki"]
[Black "Mermer, Yunus"]
[Result "1-0"]
[ECO "B80"]
[WhiteElo "1792"]
[BlackElo "1479"]
[Annotator "NA RC"]
[PlyCount "53"]
[EventDate "2019.03.06"]
[EventType "swiss"]
[EventCountry "TUR"]
[SourceTitle "playchess.com"]
[Source "ChessBase"]
[SourceQuality "1"]
[TimeControl "5400+30"]

1. e4 {[%emt 0:00:30]} c5 {[%emt 0:00:30]} 2. Nf3 {[%emt 0:00:00]} d6 {[%emt 0:00:30]} 3. d4 {[%emt 0:00:00]} cxd4 {[%emt 0:00:30]} 4. Nxd4 {[%emt 0:00:00]} Nf6 {[%emt 0:00:00]} 5. Nc3 {[%emt 0:00:00]} a6 {[%emt 0:00:00]} 6. Be3 {[%emt 0:01:30]} e6 {[%emt 0:00:00]} 7. f3 {[%emt 0:00:30]} Be7 {[%emt 0:00:00]} 8. Qd2 {[%emt 0:00:00]} Nc6 {[%emt 0:00:30]} 9. O-O-O {[%emt 0:01:00]} Qc7 {[%emt 0:02:30]} 10. g4 {[%emt 0:01:30]} e5 {[%emt 0:13:30]} 11. Nf5 {[%emt 0:26:30]} Bxf5 {[%emt 0:07:30]} 12. gxf5 {[%emt 0:00:30]} Rb8 {[%emt 0:02:30]} 13. Rg1 {[%emt 0:08:30]} g6 {[%emt 0:05:30]} 14. Bh3 {[%emt 0:09:30]} b5 {[%emt 0:05:30]} 15. Kb1 {[%emt 0:04:30]} b4 {[%emt 0:07:30]} 16. Nd5 {[%emt 0:00:00]} Nxd5 {[%emt 0:01:30]} 17. Qxd5 {[%emt 0:01:00]} a5 {[%emt 0:14:30]} 18. f4 {[%emt 0:03:30]} Qb7 {[%emt 0:16:46]} 19. f6 {[%emt 0:12:30]} Bf8 {[%emt 0:02:34]} 20. fxe5 {[%emt 0:01:30]} Nxe5 {[%emt 0:02:41]} 21. Qxa5 {[%emt 0:03:30]} Qxe4 {[%emt 0:02:48]} 22. Ba7 {[%emt 0:05:18]} Rc8 {[%emt 0:04:03]} 23. Bxc8 {[%emt 0:00:22]} Qc6 {[%emt 0:01:08]} 24. Ba6 {[%emt 0:01:01]} Nd7 {[%emt 0:00:30]} 25. Rge1+ {[%emt 0:00:30]} Be7 {[%emt 0:00:30]} 26. Rxe7+ {[%emt 0:00:30]} Kf8 {[%emt 0:00:30]} 27. Qd8# {[%emt 0:00:00]} 1-0

[Event "7th Ali Ipek Memorial 2019"]
[Site "Ankara"]
[Date "2019.03.08"]
[Round "3.6"]
[White "Kizilkus, Tanju"]
[Black "Turkmen, Ataberk"]
[Result "1-0"]
[ECO "B00"]
[WhiteElo "1571"]
[BlackElo "1868"]
[Annotator "NA RC"]
[PlyCount "55"]
[EventDate "2019.03.06"]
[EventType "swiss"]
[EventCountry "TUR"]
[SourceTitle "playchess.com"]
[Source "ChessBase"]
[SourceQuality "1"]
[TimeControl "5400+30"]

{[%evp 8,47,13,12,29,29,14,-69,25,3,32767,32767,21,32767,37,42,40,32767,32767,32767,32767,32767,32767,32767,32767,32767,32767,32767,32767,-58,32767,-38,32767,32767,32767,32767,-45,-33,10,25,489,599]} 1. e4 {[%emt 0:01:30]} b6 {[%emt 0:00:30]} 2. d4 {[%emt 0:00:30]} Bb7 {[%emt 0:00:30]} 3. Nc3 {[%emt 0:00:00]} e6 {[%emt 0:00:30]} 4. Nf3 {[%emt 0:00:00]} Bb4 {[%emt 0:02:30]} 5. Bd3 {[%emt 0:00:30]} Nf6 {[%emt 0:00:30]} 6. Qe2 {[%emt 0:04:30]} d5 {[%emt 0:00:30]} 7. Bg5 {[%emt 0:07:30] B00: Queen's Fianchetto Defence, Nimzowitsch Defence} (7. exd5 $11 Nxd5 (7... Qxd5 8. O-O Bxc3 9. bxc3 Nbd7 10. c4 Qh5 11. Bf4 Rc8 12. a4 a5 13. Rab1 O-O 14. Rb5 c5 15. dxc5 Rxc5 {0-1 (29) Eljanov,P (2734)-Carlsen,M (2827) Douglas 2017}) 8. Bd2) 7... h6 {[%emt 0:04:30]} (7... dxe4 $15 8. Bxe4 Bxe4 9. Bxf6 Qd5 10. Bxg7 Rg8) 8. Bxf6 $1 {[%emt 0:00:30]} Qxf6 {[%emt 0:00:30]} 9. O-O {[%emt 0:02:30]} O-O {[%emt 0:03:30]} 10. Nb5 {[%emt 0:06:30]} Qd8 {[%emt 0:03:30]} 11. c3 $146 {[%emt 0:02:30]} ({Predecessor:} 11. a3 Be7 12. exd5 Bxd5 13. c4 Bb7 14. Rad1 Nd7 {0-1 (35) Dzierzak,R (1906)-Cieslar,M (2010) Borowice 2012}) 11... Be7 {[%emt 0:00:30]} 12. Rae1 {[%emt 0:06:30]} a6 {[%emt 0:17:30]} 13. Na3 {[%emt 0:00:30]} Bxa3 {[%emt 0:00:30]} 14. bxa3 {[%emt 0:00:00]} Nd7 {[%emt 0:09:30]} 15. e5 {[%emt 0:00:00]} Qe7 {[%emt 0:01:30]} 16. Bb1 {[%emt 0:01:30]} Rfb8 {[%emt 0:05:30]} 17. Qc2 {[%emt 0:04:30]} Nf8 {[%emt 0:00:30]} 18. h4 {[%emt 0:08:30]} ({Better is} 18. Re3 $11) 18... c5 {[%emt 0:02:30]} 19. h5 {[%emt 0:11:30]} a5 {[%emt 0:05:30]} 20. Re3 {[%emt 0:00:30]} Ba6 {[%emt 0:00:30]} 21. Rfe1 {[%emt 0:02:30]} Rc8 {[%emt 0:00:30]} 22. Qd2 {[%emt 0:00:30]} cxd4 {[%emt 0:01:30]} 23. Nxd4 {[%emt 0:00:30]} Qxa3 $2 {[%emt 0:23:45]} (23... Qg5 $14) 24. Rg3 $18 {[%emt 0:04:30]} Kh8 {[%emt 0:00:13]} 25. Ree3 {[%emt 0:00:30]} Ra7 {[%emt 0:04:37]} 26. Rxg7 {[%emt 0:00:30]} Kxg7 {[%emt 0:01:23]} 27. Rg3+ {[%emt 0:00:30]} Ng6 {[%emt 0:00:30]} 28. hxg6 {[%emt 0:00:00]} 1-0

[Event "7th Ali Ipek Memorial 2019"]
[Site "Ankara"]
[Date "2019.03.08"]
[Round "3.8"]
[White "Alkan, Omer Tarik"]
[Black "Soku, Mustafa Attila"]
[Result "1-0"]
[ECO "B06"]
[WhiteElo "1720"]
[BlackElo "1497"]
[Annotator "NA RC"]
[PlyCount "41"]
[EventDate "2019.03.06"]
[EventType "swiss"]
[EventCountry "TUR"]
[SourceTitle "playchess.com"]
[Source "ChessBase"]
[SourceQuality "1"]
[TimeControl "5400+30"]

1. e4 {[%emt 0:00:30]} g6 {[%emt 0:01:30]} 2. d4 {[%emt 0:00:30]} Bg7 {[%emt 0:00:30]} 3. Nc3 {[%emt 0:00:00]} d6 {[%emt 0:00:30]} 4. f4 {[%emt 0:00:00]} a6 {[%emt 0:00:30]} 5. a4 {[%emt 0:00:00]} b6 {[%emt 0:00:00]} 6. Bc4 {[%emt 0:00:00]} e6 {[%emt 0:00:00]} 7. Nf3 {[%emt 0:00:30]} Nd7 {[%emt 0:00:30]} 8. O-O {[%emt 0:02:30]} Bb7 {[%emt 0:04:30]} 9. f5 {[%emt 0:06:30]} gxf5 {[%emt 0:01:30]} 10. exf5 {[%emt 0:00:30]} d5 {[%emt 0:11:30]} 11. fxe6 {[%emt 0:01:30]} fxe6 {[%emt 0:01:30]} 12. Ng5 {[%emt 0:02:30]} Ndf6 {[%emt 0:09:30]} 13. Nxe6 {[%emt 0:00:30]} Qd7 {[%emt 0:00:00]} 14. Bxd5 {[%emt 0:07:30]} Bxd5 {[%emt 0:12:00]} 15. Nxd5 {[%emt 0:00:30]} Kf7 {[%emt 0:00:30]} 16. Ndxc7 {[%emt 0:07:30]} Ne7 {[%emt 0:05:30]} 17. Nxg7 {[%emt 0:02:30]} Kxg7 {[%emt 0:00:30]} 18. Nxa8 {[%emt 0:00:30]} Rxa8 {[%emt 0:00:30]} 19. Qf3 {[%emt 0:01:30]} Rf8 {[%emt 0:00:30]} 20. c3 {[%emt 0:01:30]} Ng6 {[%emt 0:00:30]} 21. Qh3 {[%emt 0:02:30]} 1-0

[Event "7th Ali Ipek Memorial 2019"]
[Site "Ankara"]
[Date "2019.03.08"]
[Round "3.9"]
[White "Cevizci, Yusuf Baran"]
[Black "Yenice, Yusuf Erkan"]
[Result "1-0"]
[ECO "E01"]
[WhiteElo "1691"]
[BlackElo "1485"]
[Annotator "NA RC"]
[PlyCount "89"]
[EventDate "2019.03.06"]
[EventType "swiss"]
[EventCountry "TUR"]
[SourceTitle "playchess.com"]
[Source "ChessBase"]
[SourceQuality "1"]
[TimeControl "5400+30"]

1. d4 {[%emt 0:00:30]} d5 {[%emt 0:03:30]} 2. c4 {[%emt 0:00:30]} e6 {[%emt 0:02:30]} 3. Nc3 {[%emt 0:00:30]} c6 {[%emt 0:00:30]} 4. Nf3 {[%emt 0:00:30]} Nf6 {[%emt 0:00:30]} 5. g3 {[%emt 0:00:30]} dxc4 {[%emt 0:03:30]} 6. Bg2 {[%emt 0:00:30]} Nbd7 {[%emt 0:04:30]} 7. O-O {[%emt 0:00:30]} Bb4 {[%emt 0:07:30]} 8. Qc2 {[%emt 0:09:30]} Qa5 {[%emt 0:08:30]} 9. Nd2 {[%emt 0:08:30]} Nb6 {[%emt 0:04:30]} 10. Nce4 {[%emt 0:01:30]} Nxe4 {[%emt 0:04:30]} 11. Bxe4 {[%emt 0:06:30]} f5 {[%emt 0:19:30]} 12. Bg2 {[%emt 0:00:30]} Qa6 {[%emt 0:05:30]} 13. e4 {[%emt 0:02:30]} O-O {[%emt 0:05:30]} 14. Nf3 {[%emt 0:01:30]} Qa4 {[%emt 0:02:30]} 15. Qe2 {[%emt 0:06:30]} c3 {[%emt 0:07:40]} 16. Ng5 {[%emt 0:02:30]} cxb2 {[%emt 0:06:42]} 17. Bxb2 {[%emt 0:00:30]} h6 {[%emt 0:03:41]} 18. Nh3 {[%emt 0:00:30]} Bd7 {[%emt 0:00:43]} 19. Nf4 {[%emt 0:00:30]} Kh7 {[%emt 0:02:11]} 20. h4 {[%emt 0:16:30]} Bd6 {[%emt 0:01:34]} 21. e5 {[%emt 0:10:30]} Be7 {[%emt 0:01:03]} 22. h5 {[%emt 0:00:30]} Bg5 {[%emt 0:01:04]} 23. Nd3 {[%emt 0:02:30]} Be7 {[%emt 0:00:31]} 24. g4 {[%emt 0:03:30]} Nd5 {[%emt 0:00:30]} 25. gxf5 {[%emt 0:00:30]} exf5 {[%emt 0:01:24]} 26. e6 {[%emt 0:01:30]} Be8 {[%emt 0:00:00]} 27. Bxd5 {[%emt 0:02:30]} cxd5 {[%emt 0:00:10]} 28. Rfc1 {[%emt 0:00:30]} Bc6 {[%emt 0:01:09]} 29. Kh1 {[%emt 0:05:25]} Rae8 {[%emt 0:01:00]} 30. Rg1 {[%emt 0:00:27]} Bf6 {[%emt 0:00:37]} 31. Nc5 {[%emt 0:00:30]} Qb5 {[%emt 0:00:00]} 32. Qc2 {[%emt 0:10:44]} Be7 {[%emt 0:00:03]} 33. f3 {[%emt 0:01:55]} Qc4 {[%emt 0:00:17]} 34. Qg2 {[%emt 0:00:25]} g5 {[%emt 0:02:05]} 35. hxg6+ {[%emt 0:00:34]} Kg7 {[%emt 0:00:08]} 36. Rae1 {[%emt 0:03:04]} b6 {[%emt 0:01:50]} 37. Nd7 {[%emt 0:00:05]} Rh8 {[%emt 0:00:12]} 38. Ne5 {[%emt 0:00:31]} Qa4 {[%emt 0:00:33]} 39. Nf7 {[%emt 0:00:00]} Bf6 {[%emt 0:01:11]} 40. Nxh8 {[%emt 0:00:27]} Rxh8 {[%emt 0:00:00]} 41. e7 {[%emt 0:01:05]} Re8 {[%emt 0:00:06]} 42. Qh2 {[%emt 0:00:05]} Qb4 {[%emt 0:00:53]} 43. Bc1 {[%emt 0:00:42]} Bg5 {[%emt 0:00:40]} 44. Bxg5 {[%emt 0:00:00]} hxg5 {[%emt 0:00:30]} 45. Qh7+ {[%emt 0:00:00]} 1-0

[Event "7th Ali Ipek Memorial 2019"]
[Site "Ankara"]
[Date "2019.03.08"]
[Round "3.10"]
[White "Dalar, Yusuf"]
[Black "Subasi, Fidel"]
[Result "0-1"]
[ECO "A85"]
[WhiteElo "1550"]
[BlackElo "1692"]
[Annotator "NA RC"]
[PlyCount "126"]
[EventDate "2019.03.06"]
[EventType "swiss"]
[EventCountry "TUR"]
[SourceTitle "playchess.com"]
[Source "ChessBase"]
[SourceQuality "1"]
[TimeControl "5400+30"]

1. d4 {[%emt 0:00:30]} e6 {[%emt 0:00:30]} 2. c4 {[%emt 0:00:30]} f5 {[%emt 0:00:00]} 3. Nc3 {[%emt 0:00:00]} Nf6 {[%emt 0:00:00]} 4. Bg5 {[%emt 0:00:00]} Bb4 {[%emt 0:01:30]} 5. Nf3 {[%emt 0:01:30]} O-O {[%emt 0:01:30]} 6. e3 {[%emt 0:00:00]} b6 {[%emt 0:00:30]} 7. Bd3 {[%emt 0:01:00]} Bb7 {[%emt 0:00:30]} 8. O-O {[%emt 0:03:30]} Bxc3 {[%emt 0:00:30]} 9. bxc3 {[%emt 0:00:30]} Qe8 {[%emt 0:00:30]} 10. Nd2 {[%emt 0:00:30]} Qg6 {[%emt 0:00:30]} 11. Nf3 {[%emt 0:02:30]} d6 {[%emt 0:01:30]} 12. Bxf6 {[%emt 0:07:30]} Rxf6 {[%emt 0:00:30]} 13. Bc2 {[%emt 0:12:30]} Nd7 {[%emt 0:01:30]} 14. d5 {[%emt 0:01:30]} e5 {[%emt 0:02:30]} 15. Nh4 {[%emt 0:03:30]} Qf7 {[%emt 0:02:30]} 16. g3 {[%emt 0:08:30]} Nc5 {[%emt 0:01:30]} 17. Re1 {[%emt 0:06:30]} Rf8 {[%emt 0:00:30]} 18. Ng2 {[%emt 0:02:30]} Bc8 {[%emt 0:07:30]} 19. a4 {[%emt 0:05:30]} a5 {[%emt 0:00:30]} 20. Rb1 {[%emt 0:00:30]} Bd7 {[%emt 0:01:30]} 21. f4 {[%emt 0:05:30]} e4 {[%emt 0:01:30]} 22. Ra1 {[%emt 0:03:30]} Rh6 {[%emt 0:04:30]} 23. Re2 {[%emt 0:04:30]} Be8 {[%emt 0:03:30]} 24. Ne1 {[%emt 0:00:30]} Qe7 {[%emt 0:01:30]} 25. Rf2 {[%emt 0:01:30]} Bh5 {[%emt 0:04:30]} 26. Qd4 {[%emt 0:00:00]} Rff6 {[%emt 0:00:30]} 27. Bd1 {[%emt 0:00:00]} Qe8 {[%emt 0:02:30]} 28. Raa2 {[%emt 0:01:30]} Rfg6 {[%emt 0:03:30]} 29. Rg2 {[%emt 0:00:30]} Bg4 {[%emt 0:01:30]} 30. Bxg4 {[%emt 0:02:30]} Rxg4 {[%emt 0:01:30]} 31. Qd1 {[%emt 0:00:30]} Rh3 {[%emt 0:01:30]} 32. Nc2 {[%emt 0:00:30]} Qh5 {[%emt 0:05:30]} 33. Qe2 {[%emt 0:04:30]} Rgxg3 {[%emt 0:10:30]} 34. Qxh5 {[%emt 0:02:47]} Rxg2+ {[%emt 0:00:30]} 35. Kxg2 {[%emt 0:00:30]} Rxh5 {[%emt 0:00:30]} 36. Nd4 {[%emt 0:00:13]} Nd3 {[%emt 0:00:30]} 37. Nb5 {[%emt 0:00:30]} g5 {[%emt 0:01:30]} 38. Kg3 {[%emt 0:01:03]} gxf4+ {[%emt 0:03:30]} 39. exf4 {[%emt 0:00:39]} Rh6 {[%emt 0:00:30]} 40. h3 {[%emt 0:02:51]} Rg6+ {[%emt 0:01:30]} 41. Kh2 {[%emt 0:00:21]} Rg7 {[%emt 0:05:30]} 42. Nd4 {[%emt 0:00:19]} Nxf4 {[%emt 0:06:30]} 43. Rf2 {[%emt 0:00:37]} Nd3 {[%emt 0:01:30]} 44. Rxf5 {[%emt 0:00:12]} Nc5 {[%emt 0:00:30]} 45. Rf4 {[%emt 0:01:38]} Rf7 {[%emt 0:02:13]} 46. Rg4+ {[%emt 0:00:44]} Kf8 {[%emt 0:00:16]} 47. Kg2 {[%emt 0:01:20]} e3 {[%emt 0:02:03]} 48. Rh4 {[%emt 0:02:47]} Nxa4 {[%emt 0:03:08]} 49. Re4 {[%emt 0:02:09]} Rf2+ {[%emt 0:03:25]} 50. Kg3 {[%emt 0:00:32]} Nc5 {[%emt 0:00:56]} 51. Rxe3 {[%emt 0:00:50]} Rf1 {[%emt 0:00:30]} 52. Nb5 {[%emt 0:00:00]} a4 {[%emt 0:01:42]} 53. Nxc7 {[%emt 0:02:07]} a3 {[%emt 0:02:22]} 54. Re8+ {[%emt 0:00:07]} Kf7 {[%emt 0:00:46]} 55. Ra8 {[%emt 0:00:16]} Ra1 {[%emt 0:00:49]} 56. Nb5 {[%emt 0:00:33]} a2 {[%emt 0:00:15]} 57. Kh4 {[%emt 0:00:12]} Ne4 {[%emt 0:00:57]} 58. Kh5 {[%emt 0:02:09]} Kf6 {[%emt 0:02:49]} 59. Ra3 {[%emt 0:01:11]} Ng3+ {[%emt 0:01:26]} 60. Kh4 {[%emt 0:01:11]} Nf5+ {[%emt 0:00:09]} 61. Kh5 {[%emt 0:00:09]} Rg1 {[%emt 0:00:42]} 62. h4 {[%emt 0:01:27]} a1=Q {[%emt 0:00:43]} 63. Rxa1 {[%emt 0:00:30]} Rxa1 {[%emt 0:00:00]} 0-1